fUSD/lending_fUSD_20250311
["ID","MTS","AMOUNT","RATE_DAILY","PERIOD"]
[355930832,1741717118200,-425.41478167,0.00040716,30]
[355930833,1741717118229,-425.41478167,0.00040879,30]
[355930834,1741717118261,-500.0,0.00041095,120]
[355930835,1741717118290,-425.41478167,0.00041346,30]
[355930836,1741717118319,-425.41478167,0.00041583,30]
[355930837,1741717118347,-1100.0,0.00041672,60]
[355930838,1741717118375,-425.41478167,0.00041785,30]
[355930839,1741717118402,-500.0,0.00041917,120]
[355930840,1741717118432,-425.41478167,0.00042024,30]
[355930841,1741717118463,-425.41478167,0.00042449,30]
[355930842,1741717118493,-425.41478167,0.00042468,30]
[355930843,1741717118522,-500.0,0.00042739,120]
[355930844,1741717118551,-1100.0,0.00042768,60]
[355930845,1741717118582,-425.41478167,0.00042945,30]
[355930846,1741717118611,-425.41478167,0.00043146,30]
[355930847,1741717118640,-5107.0,0.00043363,117]
[355930848,1741717118669,-425.41478167,0.00043382,30]
[355930849,1741717118701,-500.0,0.00043561,120]
[355930850,1741717118729,-425.41478167,0.00043661,30]
[355930851,1741717118759,-1100.0,0.00043864,120]
[355930852,1741717118788,-425.41478167,0.00044023,30]
[355930853,1741717118819,-425.41478167,0.00044281,30]
[355930854,1741717118848,-500.0,0.00044383,120]
[355930855,1741717118878,-425.41478167,0.0004441,30]
[355930856,1741717118907,-1100.0,0.00044412,120]
[355930857,1741717118935,-2110.0,0.000445,30]
[355930858,1741717118966,-425.41478167,0.00044831,30]
[355930859,1741717118995,-1100.0,0.0004496,120]
[355930860,1741717119023,-425.41478167,0.00044961,30]
[355930861,1741717119052,-2110.0,0.00045,30]
[355930862,1741717119080,-500.0,0.00045205,120]
[355930863,1741717119108,-150.0,0.00045285,30]
[355930864,1741717119137,-150.0,0.00045285,30]
[355930865,1741717119171,-150.0,0.00045285,30]
[355930866,1741717119200,-150.0,0.00045285,30]
[355930867,1741717119230,-583.70697357,0.00045285,30]
[355930868,1741717119261,-2612.72075066,0.00045285,30]
[355930869,1741717119289,-222.13253327,0.00045285,30]
[355930870,1741717119318,-453.13320344,0.00045285,30]
[355930871,1741717119346,-425.41478167,0.0004533,30]
[355930872,1741717119375,-2110.0,0.000455,30]
[355930873,1741717119404,-1100.0,0.00045508,120]
[355930874,1741717119433,-425.41478167,0.00045724,30]
[355930875,1741717119465,-425.41478167,0.00045917,30]
[355930876,1741717119495,-2110.0,0.00046,30]
[355930877,1741717119525,-500.0,0.00046027,120]
[355930878,1741717119554,-425.41478167,0.00046038,30]
[355930879,1741717119583,-627.82780792,0.00046056,120]
[355930880,1741717119611,-425.41478167,0.00046552,30]
[355930881,1741717119640,-425.41478167,0.00046733,30]
[355930882,1741717119669,-500.0,0.00046849,120]
[355930883,1741717119699,-418.76,0.00047,120]
[355930884,1741717119731,-417.2,0.00047,120]
[355930885,1741717119760,-415.43,0.00047,120]
[355930886,1741717119790,-425.41478167,0.00047031,30]
[355930887,1741717120002,-425.41478167,0.00047182,30]
[355930888,1741717120051,-425.41478167,0.00047438,30]
[355930889,1741717120080,-448.37,0.000475,120]
[355930890,1741717120108,-458.94,0.000475,120]
[355930891,1741717120137,-455.25,0.000475,120]
[355930892,1741717120170,-500.0,0.00047671,120]
[355930893,1741717120200,-425.41478185,0.00047844,30]
[355930894,1741717120229,-31192.92596454,0.00048,120]
[355930895,1741717120257,-2000000.0,0.00048,120]
[355930896,1741717120286,-1523.09379261,0.00048,120]
[355930897,1741717120313,-2059.17280721,0.00048,120]
[355930898,1741717120341,-200.0,0.00048024,120]
[355930899,1741717120370,-2704.6,0.00048219,120]
[355930900,1741717120398,-1000000.0,0.0004825,120]
[355930901,1741717120426,-215.82076,0.000483,120]
[355930902,1741717120456,-217.76611,0.000483,120]
[355930903,1741717120484,-1335.42525391,0.00048309,120]
[355930904,1741717120512,-300.0,0.000484,120]
[355930905,1741717120539,-500.0,0.00048493,120]
[355930906,1741717120568,-1000000.0,0.000485,120]
[355930907,1741717120596,-1855024.15776733,0.000485,120]
[355930909,1741717132060,-500.0,0.00044164,120]
[355930910,1741717132089,-500.0,0.00044712,120]
[355930911,1741717132120,-574.06738831,0.0004526,120]
[355930912,1741717132151,-2110.0,0.000465,30]
[355930913,1741717132189,-2110.0,0.00047,30]
[355930914,1741717132223,-2110.0,0.000475,30]
[355930915,1741717132252,-2110.0,0.00048,30]
[355930916,1741717132282,-144975.84223267,0.000485,120]
[355930917,1741717132312,-2000000.0,0.000485,120]
[355930918,1741717132340,-2110.0,0.000485,30]
[355930919,1741717132369,-150.0,0.000485,30]
[355930920,1741717132398,-2704.6,0.00048547,120]
[355930921,1741717132428,-150.0,0.00048591,120]
[355930922,1741717132458,-577.0,0.000486,120]
[355930923,1741717132485,-200.0,0.00048636,120]
[355930924,1741717132514,-150.0,0.00048681,120]
[355930925,1741717132543,-1000000.0,0.0004875,120]
[355930926,1741717132572,-1116.31719209,0.000488,120]
[355930927,1741717132600,-2599.16884001,0.000488,120]
[355930928,1741717132628,-849.56369056,0.000488,120]
[355930929,1741717132657,-2704.6,0.00048876,120]
[355930930,1741717132685,-244.88539736,0.0004888,120]
[355930931,1741717132715,-411.52264,0.000489,120]
[355930932,1741717132744,-1167.22445439,0.000489,120]
[355930933,1741717132772,-218.0,0.0004899,30]
[355930934,1741717132800,-207.0,0.0004899,30]
[355930935,1741717132829,-207.0,0.0004899,30]
[355930936,1741717132857,-1000.0,0.00048999,120]
[355930937,1741717132888,-100000.0,0.00049,49]
[355930938,1741717132916,-751.51162741,0.00049,30]
[355930939,1741717132943,-297400.0,0.00049,120]
[355930940,1741717132972,-155.5202631,0.00049,60]
[355930941,1741717132999,-258.53120796,0.00049,120]
[355930942,1741717133027,-2500.0,0.00049,120]
[355930943,1741717133054,-1000.0,0.00049,120]
[355930944,1741717133083,-1000000.0,0.00049,120]
[355930945,1741717133113,-1426177.64506614,0.00049,120]
[355930946,1741717139309,-573822.35493386,0.00049,120]
[355930947,1741717139339,-2000000.0,0.00049,120]
[355930948,1741717139367,-2110.0,0.00049,30]
[355930949,1741717139396,-500.0,0.00049155,120]
[355930950,1741717139425,-537.0,0.00049155,120]
[355930951,1741717139458,-2704.6,0.00049205,120]
[355930952,1741717139486,-183.698,0.00049221,120]
[355930953,1741717139515,-183.699,0.00049221,120]
[355930954,1741717139543,-183.699,0.00049221,120]
[355930955,1741717139572,-183.699,0.00049221,120]
[355930956,1741717139600,-200.0,0.00049249,120]
[355930957,1741717139629,-150.0,0.00049256,120]
[355930958,1741717139657,-233.48509268,0.00049315,120]
[355930959,1741717139688,-500.0,0.00049315,120]
[355930960,1741717139720,-503.68535364,0.00049315,120]
[355930961,1741717139750,-503.72522425,0.00049315,120]
[355930962,1741717139780,-1000.0,0.00049315,120]
[355930963,1741717139810,-1000.0,0.00049315,120]
[355930964,1741717139840,-1000.0,0.00049315,120]
[355930965,1741717139868,-1000.0,0.00049315,120]
[355930966,1741717139897,-1000.0,0.00049315,120]
[355930967,1741717139927,-1000.0,0.00049315,120]
[355930968,1741717139958,-1000.0,0.00049315,120]
[355930969,1741717139987,-1000.0,0.00049315,120]
[355930970,1741717140017,-1000.0,0.00049315,120]
[355930971,1741717140048,-1000.0,0.00049315,120]
[355930972,1741717140080,-1000.0,0.00049315,120]
[355930973,1741717140113,-1000.0,0.00049315,120]
[355930974,1741717140146,-1000.0,0.00049315,120]
[355930975,1741717140180,-1000.0,0.00049315,120]
[355930976,1741717140214,-1000.0,0.00049315,120]
[355930977,1741717140247,-1000.0,0.00049315,120]
[355930978,1741717140280,-1000.0,0.00049315,120]
[355930979,1741717140312,-1000.0,0.00049315,120]
[355930980,1741717140344,-1000.0,0.00049315,120]
[355930981,1741717140376,-1000.0,0.00049315,120]
[355930982,1741717140408,-1000.0,0.00049315,120]
[355930983,1741717140439,-1000.0,0.00049315,120]
[355930984,1741717140471,-1000.0,0.00049315,120]
[355930985,1741717140501,-409.15,0.00049315,120]
[355930986,1741717140531,-500.0,0.00049315,120]
[355930987,1741717140560,-2000.0,0.00049315,120]
[355930988,1741717140591,-716.38,0.00049315,30]
[355930989,1741717140620,-2000.0,0.00049368,120]
[355930990,1741717140649,-375.0,0.000494,120]
[355930991,1741717140679,-350.0,0.000494,120]
[355930992,1741717140709,-10144.28000001,0.000494,120]
[355930993,1741717140739,-2000.0,0.0004942,120]
[355930994,1741717140770,-2000.0,0.00049473,120]
[355930995,1741717140803,-29640.77047761,0.000495,120]
[355930996,1741717140837,-1000000.0,0.000495,120]
[355930997,1741717140871,-2344364.77391795,0.000495,120]
[355930998,1741717144577,-228.70492642,0.00048,120]
[355930999,1741717144607,-153.0,0.00049,90]
[355931000,1741717144640,-630382.22608205,0.000495,120]
[355931001,1741717144669,-2110.0,0.000495,30]
[355931002,1741717144700,-150.0,0.000495,30]
[355931003,1741717144733,-2000.0,0.00049526,120]
[355931004,1741717144764,-2704.6,0.00049534,120]
[355931005,1741717144794,-2000.0,0.00049579,120]
[355931006,1741717144825,-2000.0,0.00049631,120]
[355931007,1741717144855,-2000.0,0.00049684,120]
[355931008,1741717144885,-200.0,0.0004969,120]
[355931009,1741717144917,-2200000.0,0.0004969,120]
[355931010,1741717144951,-692.76,0.000497,45]
[355931011,1741717144987,-692.76,0.000497,45]
[355931012,1741717145020,-692.76,0.000497,45]
[355931013,1741717145053,-692.76,0.000497,45]
[355931014,1741717145085,-692.76,0.000497,45]
[355931015,1741717145117,-692.76,0.000497,45]
[355931016,1741717145151,-692.76,0.000497,45]
[355931017,1741717145189,-692.76,0.000497,45]
[355931018,1741717145224,-692.76,0.000497,45]
[355931019,1741717145259,-692.76,0.000497,45]
[355931020,1741717145293,-692.76,0.000497,45]
[355931021,1741717145325,-692.76,0.000497,45]
[355931022,1741717145357,-692.76,0.000497,45]
[355931023,1741717145391,-692.76,0.000497,45]
[355931024,1741717145424,-692.76,0.000497,45]
[355931025,1741717145461,-692.76,0.000497,45]
[355931026,1741717145492,-2000.0,0.00049737,120]
[355931027,1741717145522,-150.0,0.00049752,120]
[355931028,1741717145551,-2000.0,0.00049789,120]
[355931029,1741717145581,-500.0,0.000498,120]
[355931030,1741717145610,-2545.81622363,0.000498,120]
[355931031,1741717145640,-2000.0,0.00049842,120]
[355931032,1741717145670,-200.0,0.00049861,120]
[355931033,1741717145700,-2704.6,0.00049863,120]
[355931034,1741717145733,-1000.0,0.0004987,120]
[355931035,1741717145763,-2000.0,0.00049895,120]
[355931036,1741717145794,-2192.34929185,0.00049898,63]
[355931037,1741717145824,-2000.0,0.00049947,120]
[355931038,1741717145856,-190198.25828685,0.0004998,30]
[355931039,1741717145887,-2935496.2851892,0.0004998,120]
[355931040,1741717149833,-455.62,0.000485,120]
[355931041,1741717149867,-5999544.38,0.0004998,120]
[355931042,1741717154563,-1064959.3348108,0.0004998,120]
[355931043,1741717154595,-150.0,0.0004998,30]
[355931044,1741717154627,-405.10575802,0.00049992,35]
[355931045,1741717154659,-1000.0,0.00049999,120]
[355931046,1741717154693,-100000.0,0.0005,50]
[355931047,1741717154724,-2000.0,0.0005,120]
[355931048,1741717154757,-1909.02645747,0.0005,90]
[355931049,1741717154788,-1000000.0,0.0005,120]
[355931050,1741717154820,-1000000.0,0.0005,120]
[355931051,1741717154851,-1000.0,0.0005,120]
[355931052,1741717154882,-1261.0,0.0005,120]
[355931053,1741717154913,-1945.39483058,0.0005,120]
[355931054,1741717154944,-1015.96603793,0.0005,120]
[355931055,1741717154975,-263.74960902,0.0005,120]
[355931056,1741717155006,-167.0,0.0005,120]
[355931057,1741717155036,-803.25508786,0.0005,120]
[355931058,1741717155066,-2345.35595575,0.0005,120]
[355931059,1741717155096,-7081.54220261,0.0005,120]
[355931060,1741717155128,-550.0,0.0005,120]
[355931061,1741717155160,-980.0,0.0005,120]
[355931062,1741717155196,-1000.0,0.0005,120]
[355931063,1741717155231,-255.85383381,0.0005,120]
[355931064,1741717155267,-1305.47599633,0.0005,120]
[355931065,1741717155622,-166.08414441,0.0005,120]
[355931066,1741717155655,-273.0,0.0005,120]
[355931067,1741717155686,-307.12876812,0.0005,30]
[355931068,1741717155719,-380.52022481,0.0005,120]
[355931069,1741717155750,-2500.0,0.0005,120]
[355931070,1741717155781,-200000.0,0.0005,120]
[355931071,1741717155813,-10000.0,0.0005,120]
[355931072,1741717155843,-20000.0,0.0005,90]
[355931073,1741717155876,-955000.0,0.0005,120]
[355931074,1741717155907,-1008.45535252,0.0005,33]
[355931075,1741717155939,-599.83092226,0.0005,120]
[355931076,1741717155973,-913.5,0.0005,120]
[355931077,1741717156008,-1618453.4200077,0.0005,120]
[355931078,1741717161371,-381546.5799923,0.0005,120]
[355931079,1741717161402,-2000000.0,0.0005,120]
[355931080,1741717161431,-1507.06,0.0005,120]
[355931081,1741717161460,-1500.0,0.0005,120]
[355931082,1741717161491,-200.0,0.0005,120]
[355931083,1741717161519,-2110.0,0.0005,30]
[355931084,1741717161548,-2000.0,0.00050053,120]
[355931085,1741717161577,-215.82076,0.000501,120]
[355931086,1741717161607,-2000.0,0.00050105,120]
[355931087,1741717161640,-239.1581656,0.00050136,120]
[355931088,1741717161670,-2000.0,0.00050158,120]
[355931089,1741717161701,-2704.6,0.00050191,120]
[355931090,1741717161730,-2000.0,0.00050211,120]
[355931091,1741717161761,-2000.0,0.00050263,120]
[355931092,1741717161792,-2000.0,0.00050316,120]
[355931093,1741717161824,-2000.0,0.00050369,120]
[355931094,1741717161855,-2000.0,0.00050421,120]
[355931095,1741717161885,-200.0,0.00050474,120]
[355931096,1741717161916,-2000.0,0.00050474,120]
[355931097,1741717161949,-1000000.0,0.000505,120]
[355931098,1741717161981,-2000000.0,0.000505,120]
[355931099,1741717162012,-200.0,0.000505,120]
[355931100,1741717162042,-2110.0,0.000505,30]
[355931101,1741717162073,-2704.6,0.0005052,120]
[355931102,1741717162103,-2000.0,0.00050527,120]
[355931103,1741717162134,-2000.0,0.0005058,120]
[355931104,1741717162165,-2000.0,0.00050632,120]
[355931105,1741717162200,-2000.0,0.00050685,120]
[355931106,1741717162230,-2000.0,0.00050738,120]
[355931107,1741717162261,-2000.0,0.0005079,120]
[355931108,1741717162291,-2000.0,0.00050843,120]
[355931109,1741717162322,-2704.6,0.00050849,120]
[355931110,1741717162354,-150.0,0.00050888,120]
[355931111,1741717162384,-2000.0,0.00050896,120]
[355931112,1741717162413,-2000.0,0.00050948,120]
[355931113,1741717162444,-1000.0,0.00050999,120]
[355931114,1741717162478,-100000.0,0.00051,51]
[355931115,1741717162510,-464907.5810821,0.00051,120]
[355931116,1741717167391,-224527.13954028,0.0005,30]
[355931117,1741717167421,-150.0,0.00050369,120]
[355931118,1741717167452,-535092.4189179,0.00051,120]
[355931119,1741717167481,-1000000.0,0.00051,120]
[355931120,1741717167511,-201.38114654,0.00051,120]
[355931121,1741717167540,-219.65106036,0.00051,120]
[355931122,1741717167569,-1000.0,0.00051,60]
[355931123,1741717167599,-22215.85962346,0.00051,120]
[355931124,1741717167627,-2500.0,0.00051,120]
[355931125,1741717167656,-10000.0,0.00051,120]
[355931126,1741717167686,-200.0,0.00051,120]
[355931127,1741717167717,-629.0,0.00051,120]
[355931128,1741717167750,-2110.0,0.00051,30]
[355931129,1741717167781,-150.0,0.00051,30]
[355931130,1741717167812,-2000.0,0.00051001,120]
[355931131,1741717167844,-2000.0,0.00051054,120]
[355931132,1741717167874,-200.0,0.00051086,120]
[355931133,1741717167905,-2000.0,0.00051106,120]
[355931134,1741717167935,-2000.0,0.00051159,120]
[355931135,1741717167964,-2704.6,0.00051178,120]
[355931136,1741717167996,-2000.0,0.00051212,120]
[355931137,1741717168026,-2000.0,0.00051264,120]
[355931138,1741717168055,-2000.0,0.00051317,120]
[355931139,1741717168085,-2000.0,0.0005137,120]
[355931140,1741717168114,-2000.0,0.00051423,120]
[355931141,1741717168144,-2000.0,0.00051475,120]
[355931142,1741717168175,-1000.0,0.00051499,120]
[355931143,1741717168212,-1000000.0,0.000515,120]
[355931144,1741717168249,-1000000.0,0.000515,120]
[355931145,1741717168283,-200.0,0.000515,120]
[355931146,1741717168312,-2110.0,0.000515,30]
[355931147,1741717168342,-415.92163908,0.00051506,120]
[355931148,1741717168371,-500.0,0.00051506,120]
[355931149,1741717168400,-500.0,0.00051506,120]
[355931150,1741717168430,-414.0,0.00051506,120]
[355931151,1741717168459,-2704.6,0.00051506,120]
[355931152,1741717168490,-2000.0,0.00051528,120]
[355931153,1741717168518,-2000.0,0.00051581,120]
[355931154,1741717168547,-2000.0,0.00051633,120]
[355931155,1741717168576,-2000.0,0.00051686,120]
[355931156,1741717168604,-200.0,0.00051698,120]
[355931157,1741717168632,-2000.0,0.00051739,120]
[355931158,1741717168661,-153.0,0.00051781,120]
[355931159,1741717168691,-2000.0,0.00051791,120]
[355931160,1741717168722,-150.0,0.00051831,120]
[355931161,1741717168752,-2704.6,0.00051835,120]
[355931162,1741717168781,-2000.0,0.00051844,120]
[355931163,1741717168810,-2000.0,0.00051897,120]
[355931164,1741717168842,-215.82076,0.000519,120]
[355931165,1741717168875,-2000.0,0.00051949,120]
[355931166,1741717169207,-1000.0,0.00051999,120]
[355931167,1741717169245,-1000000.0,0.00052,120]
[355931168,1741717169277,-1000000.0,0.00052,120]
[355931169,1741717169308,-1000.0,0.00052,120]
[355931170,1741717169337,-280.29037281,0.00052,120]
[355931171,1741717169368,-154.20804126,0.00052,120]
[355931172,1741717169399,-300.0,0.00052,120]
[355931173,1741717169430,-171.0,0.00052,120]
[355931174,1741717169461,-2500.0,0.00052,120]
[355931175,1741717169492,-10000.0,0.00052,120]
[355931176,1741717169523,-200.0,0.00052,120]
[355931177,1741717169553,-1449.03,0.00052,30]
[355931178,1741717169582,-2000.0,0.00052002,120]
[355931179,1741717169613,-150.0,0.00052028,120]
[355931180,1741717169644,-3055.81808065,0.00052055,120]
[355931181,1741717169675,-2704.6,0.00052164,120]
[355931182,1741717169709,-200.0,0.00052311,120]
[355931183,1741717169744,-1757.32,0.00052319,120]
[355931184,1741717169776,-1480.393,0.0005245,30]
[355931185,1741717169809,-2704.6,0.00052493,120]
[355931186,1741717169842,-117724.74781766,0.000525,120]
[355931187,1741717194499,1879.082267,0.00027923,120]
[355931188,1741717194830,1879.082267,0.00027923,120]
[355931189,1741717195149,1879.082267,0.00027923,120]
[355931190,1741717195478,1879.082267,0.00027923,120]
[355931191,1741717195833,1879.082267,0.00027923,120]
[355931192,1741717196155,1879.082267,0.00027923,120]
[355931193,1741717196675,1879.082267,0.00027923,120]
[355931194,1741717197062,1879.082267,0.00027923,120]
[355931195,1741717198526,1879.082267,0.00027923,120]
[355931196,1741717198877,1879.082267,0.00027923,120]
[355931197,1741717199186,1879.082267,0.00027923,120]
[355931198,1741717199710,1879.082267,0.00027923,120]
[355931199,1741717199941,1879.082267,0.00027923,120]
[355931200,1741717200167,1879.082267,0.00027923,120]
[355931201,1741717200485,1879.082267,0.00027923,120]
[355931202,1741717200870,1879.082267,0.00027923,120]
[355931203,1741717201161,1879.082267,0.00027923,120]
[355931204,1741717201509,1879.082267,0.00027923,120]
[355931205,1741717202226,1879.082267,0.00027923,120]
[355931206,1741717202341,1879.082267,0.00027923,120]
[355931207,1741717202601,1879.082267,0.00027923,120]
[355931208,1741717202802,1879.082267,0.00027923,120]
[355931209,1741717203121,1879.082267,0.00027923,120]
[355931210,1741717203445,1879.082267,0.00027923,120]
[355931211,1741717210167,-1258.53983915,0.00039462,120]
[355931212,1741717210206,-152.7871657,0.00039462,120]
[355931213,1741717210251,-458.41,0.000505,120]
[355931214,1741717210289,-453.97,0.00052,120]
[355931215,1741717210322,-882275.25218234,0.000525,120]
[355931216,1741717210354,-1000000.0,0.000525,120]
[355931217,1741717210386,-1500.000001,0.000525,120]
[355931218,1741717210416,-150.0,0.000525,120]
[355931219,1741717210447,-5020.10017,0.00052603,30]
[355931220,1741717210479,-2704.6,0.00052821,120]
[355931221,1741717210512,-150.0,0.00052897,120]
[355931222,1741717210544,-200.0,0.00052923,120]
[355931223,1741717210575,-1000.0,0.00052999,120]
[355931224,1741717210612,-1000000.0,0.00053,120]
[355931225,1741717210645,-1000000.0,0.00053,120]
[355931226,1741717210677,-500000.0,0.00053,90]
[355931227,1741717210709,-550.0,0.00053,120]
[355931228,1741717210740,-171.70280341,0.00053,120]
[355931229,1741717210774,-2500.0,0.00053,120]
[355931230,1741717210807,-2500.0,0.00053,120]
[355931231,1741717210839,-536.2,0.00053,120]
[355931232,1741717210871,-53666.40008285,0.00053,30]
[355931233,1741717210903,-2704.6,0.0005315,120]
[355931234,1741717210937,-2704.6,0.00053479,120]
[355931235,1741717210969,-1000.0,0.00053499,120]
[355931236,1741717211002,-1000000.0,0.000535,120]
[355931237,1741717211035,-538342.83775555,0.000535,120]
[355931238,1741717219228,-461657.16224445,0.000535,120]
[355931239,1741717219262,-150.0,0.000535,30]
[355931240,1741717219295,-150.0,0.000535,120]
[355931241,1741717219329,-150.0,0.00053502,120]
[355931242,1741717219362,-200.0,0.00053535,120]
[355931243,1741717219394,-3039.87672862,0.00053698,120]
[355931244,1741717219426,-1798.16845351,0.000537,74]
[355931245,1741717219462,-215.82076,0.000537,120]
[355931246,1741717219499,-190.0,0.000537,120]
[355931247,1741717219532,-10065.95140823,0.000538,120]
[355931248,1741717219566,-2704.6,0.00053808,120]
[355931249,1741717219597,-1000.0,0.00053999,120]
[355931250,1741717219629,-1000000.0,0.00054,120]
[355931251,1741717219666,-1000000.0,0.00054,120]
[355931252,1741717219705,-1000.0,0.00054,120]
[355931253,1741717219738,-1492.5168009,0.00054,120]
[355931254,1741717219770,-672.11366183,0.00054,120]
[355931255,1741717219802,-400.0,0.00054,120]
[355931256,1741717219835,-171.0,0.00054,120]
[355931257,1741717219865,-2500.0,0.00054,120]
[355931258,1741717219895,-2500.0,0.00054,120]
[355931259,1741717219927,-2704.79918063,0.00054136,120]
[355931260,1741717219957,-200.0,0.00054148,120]
[355931261,1741717219988,-200.0,0.00054197,120]
[355931262,1741717220018,-361.14798489,0.00054224,120]
[355931263,1741717220048,-361.14798489,0.00054226,120]
[355931264,1741717220078,-3443.34,0.00054234,120]
[355931265,1741717220110,-200.0,0.00054235,120]
[355931266,1741717220142,-9614.04393427,0.00054264,120]
[355931267,1741717220172,-324.34359616,0.00054264,120]
[355931268,1741717220205,-1447.67190251,0.00054265,120]
[355931269,1741717220237,-324.34359616,0.00054278,120]
[355931270,1741717220268,-958.47204671,0.0005431,120]
[355931271,1741717220300,-200.0,0.00054317,120]
[355931272,1741717220330,-1447.67190251,0.00054318,120]
[355931273,1741717220361,-958.47204671,0.00054338,120]
[355931274,1741717220391,-361.14798489,0.00054357,120]
[355931275,1741717220421,-200.0,0.00054371,120]
[355931276,1741717220453,-324.34359616,0.00054381,120]
[355931277,1741717220485,-324.34359616,0.00054409,120]
[355931278,1741717220518,-958.47204671,0.00054412,120]
[355931279,1741717220552,-9614.04393427,0.00054438,120]
[355931280,1741717220586,-9614.04393427,0.00054445,120]
[355931281,1741717220620,-1000000.0,0.000545,120]
[355931282,1741717220656,-438.95429893,0.000545,120]
[355931283,1741717220695,-1000000.0,0.000545,120]
[355931284,1741717220731,-1447.67190251,0.00054513,120]
[355931285,1741717220766,-200.0,0.00054514,120]
[355931286,1741717220800,-1447.67190251,0.00054529,120]
[355931287,1741717220833,-361.14798489,0.00054532,120]
[355931288,1741717220867,-958.47204671,0.00054558,120]
[355931289,1741717220900,-9614.04393427,0.00054571,120]
[355931290,1741717220933,-76662.9906658,0.000546,120]
[355931291,1741717220965,-200.0,0.0005476,120]
[355931292,1741717221000,-500.0,0.00054794,120]
[355931293,1741717221036,-500.0,0.00054794,120]
[355931294,1741717221070,-500.0,0.00054794,120]
[355931295,1741717221103,-500.0,0.00054794,120]
[355931296,1741717221136,-500.0,0.00054794,120]
[355931297,1741717221170,-500.0,0.00054794,120]
[355931298,1741717221206,-536.93475799,0.00054794,120]
[355931299,1741717221239,-500.0,0.00054794,120]
[355931300,1741717221272,-500.0,0.00054794,120]
[355931301,1741717221306,-500.0,0.00054794,120]
[355931302,1741717221339,-500.0,0.00054794,120]
[355931303,1741717221370,-500.0,0.00054794,120]
[355931304,1741717221402,-500.0,0.00054794,120]
[355931305,1741717221432,-561.5328128,0.00054794,120]
[355931306,1741717221464,-500.0,0.00054794,120]
[355931307,1741717221496,-500.0,0.00054794,120]
[355931308,1741717221528,-500.0,0.00054794,120]
[355931309,1741717221561,-500.0,0.00054794,120]
[355931310,1741717221595,-500.0,0.00054794,120]
[355931311,1741717221625,-640.61248298,0.00054794,120]
[355931312,1741717221656,-1502.56,0.00054794,120]
[355931313,1741717221689,-1502.56,0.00054794,120]
[355931314,1741717221721,-1502.56,0.00054794,120]
[355931315,1741717221754,-1502.56,0.00054794,120]
[355931316,1741717221789,-1502.56,0.00054794,120]
[355931317,1741717221824,-1502.56,0.00054794,120]
[355931318,1741717221857,-1502.56,0.00054794,120]
[355931319,1741717221890,-1502.56,0.00054794,120]
[355931320,1741717221925,-1502.56,0.00054794,120]
[355931321,1741717221961,-1502.56,0.00054794,120]
[355931322,1741717221993,-1502.56,0.00054794,120]
[355931323,1741717222284,-1502.56,0.00054794,120]
[355931324,1741717222323,-1502.56,0.00054794,120]
[355931325,1741717222356,-1502.56,0.00054794,120]
[355931326,1741717222390,-1502.56,0.00054794,120]
[355931327,1741717222426,-1502.56,0.00054794,120]
[355931328,1741717222460,-1502.56,0.00054794,120]
[355931329,1741717222494,-1502.56,0.00054794,120]
[355931330,1741717222528,-1502.56,0.00054794,120]
[355931331,1741717222564,-1502.56,0.00054794,120]
[355931332,1741717222594,-1502.56,0.00054794,120]